bitfinex-derivatives/quotes_BTCF0:USTF0_20250716
["timestamp","ask_amount","ask_price","bid_price","bid_amount"]
[1752643066225,0.45375583,118050.0,118040.0,0.80957013]
[1752643066425,1.04979583,118050.0,118040.0,0.80957013]
[1752643067219,0.007,118050.0,118040.0,1.08691426]
[1752643067422,0.64043434,118070.0,118060.0,0.1693974]
[1752643067621,1.13452153,118070.0,118060.0,0.5301974]
[1752643068317,1.14234303,118070.0,118060.0,0.5301974]
[1752643072029,1.14234303,118070.0,118060.0,0.80754153]
[1752643072530,1.14234303,118070.0,118060.0,0.5301974]
[1752643073229,0.54634303,118070.0,118060.0,0.80754153]
[1752643073431,1.14214303,118070.0,118060.0,0.80754153]
[1752643074330,1.14214303,118070.0,118060.0,0.5301974]
[1752643074531,1.24879584,118070.0,118060.0,0.5301974]
[1752643074932,1.34114111,118070.0,118060.0,0.5301974]
[1752643077230,0.74534111,118070.0,118060.0,0.5301974]
[1752643077426,0.97129171,118070.0,118060.0,0.5301974]
[1752643077633,1.34098111,118070.0,118060.0,0.5301974]
[1752643078131,1.2343283,118070.0,118060.0,0.5301974]
[1752643079332,1.2342883,118070.0,118060.0,0.5301974]
[1752643082935,1.2342883,118070.0,118060.0,0.3608]
[1752643083736,1.2342883,118070.0,118060.0,0.5301974]
[1752643084232,0.8645989,118070.0,118060.0,0.5301974]
[1752643084434,1.2342883,118070.0,118060.0,0.5301974]
[1752643086243,1.2342883,118070.0,118060.0,0.3608]
[1752643087241,1.2342883,118070.0,118060.0,0.5301974]
[1752643089042,1.34094111,118070.0,118060.0,0.5301974]
[1752643089340,1.2342883,118070.0,118060.0,0.5301974]
[1752643092446,0.8645989,118070.0,118060.0,0.5301974]
[1752643092646,1.2342883,118070.0,118060.0,0.5301974]
[1752643093645,0.8645989,118070.0,118060.0,0.5301974]
[1752643093841,1.2342883,118070.0,118060.0,0.5301974]
[1752643094145,0.8645989,118070.0,118060.0,0.5301974]
[1752643094343,1.2342883,118070.0,118060.0,0.5301974]
[1752643094845,0.8645989,118070.0,118060.0,0.5301974]
[1752643095145,1.2342883,118070.0,118060.0,0.5301974]
[1752643095448,1.34103192,118070.0,118060.0,0.5301974]
[1752643096339,0.6386883,118070.0,118060.0,0.5301974]
[1752643096545,1.2337283,118070.0,118060.0,0.5301974]
[1752643097040,1.14132102,118070.0,118060.0,0.5301974]
[1752643099541,0.8640389,118070.0,118060.0,0.5301974]
[1752643099744,1.41860314,118070.0,118060.0,0.5301974]
[1752643100042,1.14132102,118070.0,118060.0,0.5301974]
[1752643100447,1.41860314,118070.0,118060.0,0.5301974]
[1752643100946,1.52534676,118070.0,118060.0,0.3608]
[1752643102242,1.41860314,118070.0,118060.0,0.3608]
[1752643104445,1.41860314,118070.0,118060.0,0.5301974]
[1752643106448,0.46157662,118070.0,118060.0,0.5301974]
[1752643106651,1.05637662,118070.0,118060.0,0.5301974]
[1752643106948,0.29219362,118070.0,118060.0,0.80747952]
[1752643107148,0.88695362,118070.0,118060.0,0.80747952]
[1752643107349,0.6096715,118070.0,118060.0,0.80747952]
[1752643107650,1.05633662,118070.0,118060.0,0.5301974]
[1752643107852,0.88695362,118070.0,118060.0,0.5301974]
[1752643108049,0.88695362,118070.0,118060.0,0.80747952]
[1752643108249,1.05633662,118070.0,118060.0,0.80747952]
[1752643108451,0.88695362,118070.0,118060.0,0.80747952]
[1752643108848,0.00709,118070.0,118060.0,1.08476164]
[1752643109152,0.11383362,118070.0,118060.0,0.89976935]
[1752643109345,0.00709,118070.0,118060.0,1.49448935]
[1752643109547,0.10903362,118080.0,118070.0,0.169383]
[1752643109742,0.00722,118080.0,118070.0,0.530183]
[1752643110050,0.00722,118080.0,118070.0,0.89975495]
[1752643110347,0.00493,118080.0,118070.0,0.89975495]
[1752643114450,0.00493,118080.0,118070.0,0.96857221]
[1752643115552,0.00722,118080.0,118070.0,0.59900026]
[1752643119051,0.54616065,118080.0,118070.0,0.59900026]
[1752643119242,0.54616065,118080.0,118070.0,1.19344026]
[1752643119642,0.54616065,118080.0,118070.0,0.59900026]
[1752643119847,0.54616065,118080.0,118070.0,1.19340026]
[1752643122155,0.00722,118080.0,118070.0,1.19340026]
[1752643122358,0.37679195,118080.0,118070.0,1.19340026]
[1752643124160,0.54616065,118080.0,118070.0,1.19340026]
[1752643124460,0.54616065,118080.0,118070.0,0.59900026]
[1752643124856,0.54616065,118080.0,118070.0,1.19324026]
[1752643128968,0.7310131,118080.0,118070.0,0.87621246]
[1752643129170,0.7310131,118080.0,118070.0,1.47037246]
[1752643131572,0.7310131,118080.0,118070.0,1.19316026]
[1752643131873,0.7310131,118080.0,118070.0,1.19308026]
[1752643132475,0.7310131,118080.0,118070.0,1.47029246]
[1752643133078,0.1765887,118080.0,118070.0,1.47029246]
[1752643133277,0.7310131,118080.0,118070.0,1.47029246]
[1752643133577,0.5616444,118080.0,118070.0,1.47029246]
[1752643134777,0.2844322,118080.0,118070.0,1.47029246]
[1752643136776,0.4538009,118080.0,118070.0,1.47029246]
[1752643138683,0.2844322,118080.0,118070.0,1.47029246]
[1752643139680,0.4538009,118080.0,118070.0,1.47029246]
[1752643140382,0.4538009,118080.0,118070.0,1.19308026]
[1752643140577,0.4538009,118080.0,118070.0,1.47029246]
[1752643142685,0.7310131,118080.0,118070.0,1.47029246]
[1752643143679,0.7310131,118080.0,118070.0,1.10949246]
[1752643143880,0.7310131,118080.0,118070.0,0.59900026]
[1752643144085,0.7310131,118080.0,118070.0,0.169383]
[1752643144784,1.3246931,118080.0,118070.0,0.169383]
[1752643144987,1.4093824,118080.0,118070.0,0.169383]
[1752643148080,0.96170162,118080.0,118070.0,0.169383]
[1752643148375,1.51612602,118080.0,118070.0,0.169383]
[1752643148979,1.33135969,118080.0,118070.0,0.169383]
[1752643151081,0.96170162,118080.0,118070.0,0.169383]
[1752643151276,1.33135969,118080.0,118070.0,0.169383]
[1752643156291,0.169383,118070.0,118060.0,1.2508275]
[1752643156490,0.54615107,118070.0,118060.0,1.166132]
[1752643156890,0.54615107,118070.0,118060.0,1.1237857]
[1752643157194,0.54615107,118070.0,118060.0,0.5301857]
[1752643157385,0.54615107,118070.0,118060.0,0.3608]
[1752643157585,0.54615107,118070.0,118060.0,0.5301973]
[1752643158282,0.54615107,118070.0,118060.0,0.3608]
[1752643159088,0.54615107,118070.0,118060.0,0.5301973]
[1752643161693,0.176493,118070.0,118060.0,0.5301973]
[1752643161895,0.54615107,118070.0,118060.0,0.5301973]
[1752643162290,0.176493,118070.0,118060.0,0.5301973]
[1752643162497,0.54615107,118070.0,118060.0,0.5301973]
[1752643163994,0.176493,118070.0,118060.0,0.5301973]
[1752643164389,0.0048,118070.0,118060.0,0.89985537]
[1752643164590,0.0048,118070.0,118060.0,1.26065537]
[1752643165594,0.0048,118070.0,118060.0,0.8909973]
[1752643165796,0.0048,118070.0,118060.0,1.26065537]
[1752643166097,0.0048,118070.0,118060.0,0.8909973]
[1752643166299,0.0048,118070.0,118060.0,1.26065537]
[1752643172601,0.73295719,118090.0,118080.0,0.1693687]
[1752643172802,0.73775719,118090.0,118080.0,0.5301687]
[1752643173205,0.63101357,118090.0,118080.0,0.5301687]
[1752643173705,0.58867157,118090.0,118080.0,0.5301687]
[1752643175605,0.37696807,118090.0,118080.0,0.5301687]
[1752643175808,0.00731,118090.0,118080.0,0.89982677]
[1752643176107,0.11405362,118090.0,118080.0,0.89982677]
[1752643176299,0.00731,118090.0,118080.0,0.89982677]
[1752643176499,0.00731,118090.0,118080.0,0.5301687]
[1752643177808,0.005,118090.0,118080.0,0.5301687]
[1752643178309,0.005,118090.0,118080.0,1.26062677]
[1752643178310,0.11398366,118090.0,118080.0,1.26062677]
[1752643178603,0.005,118090.0,118080.0,1.26062677]
[1752643178804,0.005,118090.0,118080.0,0.8909687]
[1752643179013,0.005,118090.0,118080.0,1.26062677]
[1752643180311,0.0002,118090.0,118080.0,1.26062677]
[1752643180610,0.005,118090.0,118080.0,1.26062677]
[1752643181009,0.005,118090.0,118080.0,0.8909687]
[1752643181209,0.005,118090.0,118080.0,1.26062677]
[1752643189810,0.005,118090.0,118080.0,0.8909687]
[1752643190016,0.54641237,118090.0,118080.0,1.4834087]
[1752643192517,0.1767543,118090.0,118080.0,1.4834087]
[1752643192713,0.54641237,118090.0,118080.0,1.4834087]
[1752643193418,0.1767543,118090.0,118080.0,1.4834087]
[1752643193616,0.0074,118090.0,118080.0,1.4834087]
[1752643193814,0.1767543,118090.0,118080.0,1.4834087]
[1752643194517,0.54641237,118090.0,118080.0,1.4834087]
[1752643194717,0.54641237,118090.0,118080.0,0.7618087]
[1752643194917,0.54641237,118090.0,118080.0,1.4834087]
[1752643195615,0.54641237,118090.0,118080.0,0.8909687]
[1752643195817,0.37705807,118090.0,118080.0,1.4832487]
[1752643196920,0.54641237,118090.0,118080.0,1.4832487]
[1752643197822,0.54641237,118090.0,118080.0,0.8909687]
[1752643198022,0.54641237,118090.0,118080.0,1.4831687]
[1752643198718,0.54641237,118090.0,118080.0,0.8909687]
[1752643198922,0.54641237,118090.0,118080.0,1.4831687]
[1752643200622,0.1767543,118090.0,118080.0,1.4831687]
[1752643200832,0.54641237,118090.0,118080.0,1.4831687]
[1752643201127,0.37705807,118090.0,118080.0,1.4831687]
[1752643201332,0.37705807,118090.0,118080.0,0.8909687]
[1752643201533,0.54641237,118090.0,118080.0,1.4830887]
[1752643202932,0.45391366,118090.0,118080.0,1.76024806]
[1752643203433,0.28455936,118090.0,118080.0,1.76024806]
[1752643203931,0.45391366,118090.0,118080.0,1.76024806]
[1752643207530,0.45391366,118090.0,118080.0,1.4830887]
[1752643207737,0.45391366,118090.0,118080.0,1.76024806]
[1752643208435,0.45391366,118090.0,118080.0,1.16812806]
[1752643208639,0.73107302,118090.0,118080.0,0.95276]
[1752643209436,0.73107302,118090.0,118080.0,1.1221287]
[1752643210038,0.83774668,118090.0,118080.0,1.1221287]
[1752643211037,0.65304719,118090.0,118080.0,1.1221287]
[1752643211428,0.28342796,118090.0,118080.0,1.1221287]
[1752643211632,0.65304719,118090.0,118080.0,1.1221287]
[1752643215542,0.28342796,118090.0,118080.0,1.1221287]
[1752643215839,0.65304719,118090.0,118080.0,1.1221287]
[1752643217446,0.65304719,118090.0,118080.0,0.5301687]
[1752643217645,0.65304719,118090.0,118080.0,1.1220087]
[1752643222250,0.28342796,118090.0,118080.0,1.1220087]
[1752643222448,0.65304719,118090.0,118080.0,1.1220087]
[1752643225155,0.65304719,118090.0,118080.0,0.5301687]
[1752643225351,0.65304719,118090.0,118080.0,1.1218887]
[1752643225553,0.65304719,118090.0,118080.0,0.5301687]
[1752643225852,0.65304719,118090.0,118080.0,1.1218887]
[1752643226455,0.54637353,118090.0,118080.0,1.1218887]
[1752643226654,0.54637353,118090.0,118080.0,0.5301687]
[1752643227657,0.65310114,118090.0,118080.0,0.5301687]
[1752643230562,0.28348191,118090.0,118080.0,0.5301687]
[1752643230763,0.65310114,118090.0,118080.0,0.5301687]
[1752643230955,0.5606704,118090.0,118080.0,0.5301687]
[1752643233260,0.45394279,118090.0,118080.0,0.5301687]
[1752643233660,0.73113128,118090.0,118080.0,0.5301687]
[1752643233860,0.53382359,118090.0,118080.0,0.1693687]
[1752643234060,0.53858359,118090.0,118080.0,0.1693687]
[1752643234564,0.81577208,118090.0,118080.0,0.1693687]
[1752643238559,0.53858359,118090.0,118080.0,0.1693687]
[1752643239155,0.2613951,118090.0,118080.0,0.1693687]
[1752643239662,1.13006359,118090.0,118080.0,0.1693687]
[1752643239966,1.13006359,118090.0,118080.0,0.44655719]
[1752643240163,1.13006359,118090.0,118080.0,0.1693687]
[1752643242663,0.8528751,118090.0,118080.0,0.1693687]
[1752643242967,1.13006359,118090.0,118080.0,0.1693687]
[1752643243170,1.13006359,118090.0,118080.0,0.44655719]
[1752643243367,1.23682018,118090.0,118080.0,0.44655719]
[1752643244370,1.23682018,118090.0,118080.0,0.1693687]
[1752643244567,1.23682018,118090.0,118080.0,0.44655719]
[1752643245370,1.23682018,118090.0,118080.0,0.1693687]
[1752643245670,1.23682018,118090.0,118080.0,0.44655719]
[1752643245873,1.23682018,118090.0,118080.0,0.1693687]
[1752643247666,0.95963169,118090.0,118080.0,0.1693687]
[1752643247871,1.23682018,118090.0,118080.0,0.1693687]
[1752643249679,1.27916188,118090.0,118080.0,0.1693687]
[1752643249878,1.55635037,118090.0,118080.0,0.1693687]
[1752643250076,1.55635037,118090.0,118070.0,1.42501001]
[1752643250077,0.1716887,118080.0,118070.0,1.59438211]
[1752643250274,0.73080568,118080.0,118070.0,1.59438211]
[1752643251779,0.1764287,118080.0,118070.0,1.59438211]
[1752643251980,0.73080568,118080.0,118070.0,1.59438211]
[1752643252380,0.45361719,118080.0,118070.0,1.59438211]
[1752643253380,0.45361719,118080.0,118070.0,1.59414211]
[1752643257597,0.73080568,118080.0,118070.0,1.23226442]
[1752643258594,0.73080568,118080.0,118070.0,1.50945291]
[1752643258794,0.73080568,118080.0,118070.0,1.50937291]
[1752643259297,0.73080568,118080.0,118070.0,1.23218442]
[1752643260701,0.73080568,118080.0,118070.0,0.64110442]
[1752643260898,0.73080568,118080.0,118070.0,1.23218442]
[1752643261498,0.73080568,118080.0,118070.0,1.50937291]
[1752643262403,0.73080568,118080.0,118070.0,1.23218442]
[1752643262705,0.73080568,118080.0,118070.0,0.87138442]
[1752643262899,0.73080568,118080.0,118070.0,1.23218442]
[1752643264695,0.73080568,118080.0,118070.0,1.121103]
[1752643264901,0.73080568,118080.0,118070.0,0.530183]
[1752643265102,0.83756227,118080.0,118070.0,1.121103]
[1752643265503,0.73080568,118080.0,118070.0,1.121103]
[1752643265803,0.73080568,118080.0,118070.0,0.530183]
[1752643266306,0.83756227,118080.0,118070.0,0.530183]
[1752643268310,0.73080568,118080.0,118070.0,0.530183]
[1752643269404,1.00799417,118080.0,118070.0,0.3608]
[1752643269602,0.171703,118070.0,118060.0,1.2057643]
[1752643269807,0.73081998,118070.0,118060.0,1.2057643]
[1752643270108,0.73081998,118070.0,118060.0,0.6148843]
[1752643270300,0.73081998,118070.0,118060.0,1.2057243]
[1752643270702,0.176443,118070.0,118060.0,1.2057243]
[1752643271000,0.45363149,118070.0,118060.0,0.6148843]
[1752643271200,0.45363149,118070.0,118060.0,1.2057243]
[1752643271604,0.56038808,118070.0,118060.0,1.2057243]
[1752643271811,0.56038808,118070.0,118060.0,1.2056843]
[1752643272310,0.45363149,118070.0,118060.0,1.2056843]
[1752643273112,0.56038808,118070.0,118060.0,1.2056843]
[1752643275013,0.56038808,118070.0,118060.0,1.48287279]
[1752643275209,0.45131149,118070.0,118060.0,1.2056843]
[1752643275516,0.45131149,118070.0,118060.0,1.48287279]
[1752643276815,0.45131149,118070.0,118060.0,1.2056843]
[1752643277016,0.45131149,118070.0,118060.0,1.48287279]
[1752643278619,0.45131149,118070.0,118060.0,1.2056843]
[1752643278921,0.45369149,118070.0,118060.0,1.48287279]
[1752643281620,0.176503,118070.0,118060.0,1.48287279]
[1752643281821,0.45369149,118070.0,118060.0,1.48287279]
[1752643283025,0.28192849,118070.0,118060.0,1.48287279]
[1752643283924,0.28190849,118080.0,118070.0,0.169383]
[1752643284123,0.28190849,118080.0,118070.0,0.80737149]
[1752643285123,0.49381429,118090.0,118080.0,0.1693686]
[1752643285315,0.45147459,118090.0,118080.0,1.39787709]
[1752643286330,0.55823118,118090.0,118080.0,1.39787709]
[1752643286623,0.10695659,118090.0,118080.0,1.1206886]
[1752643286926,0.0002,118090.0,118080.0,1.39787709]
[1752643287122,0.26615153,118110.0,118080.0,1.95225347]
[1752643287323,0.26615153,118110.0,118100.0,1.16812849]
[1752643287324,0.56037118,118110.0,118100.0,1.16812849]
[1752643287523,0.28318269,118110.0,118100.0,1.73932832]
[1752643287826,0.56037118,118110.0,118100.0,1.73932832]
[1752643288225,0.39104508,118110.0,118100.0,1.73932832]
[1752643288425,0.39917309,118110.0,118100.0,1.73932832]
[1752643288827,0.56849869,118110.0,118100.0,1.73932832]
[1752643289028,0.1219846,118110.0,118100.0,1.46213983]
[1752643291031,0.1196046,118110.0,118100.0,1.83154351]
[1752643291432,0.1196046,118110.0,118100.0,1.46213983]
[1752643292132,0.1196046,118110.0,118100.0,1.83154351]
[1752643293230,0.01284801,118110.0,118100.0,1.83154351]
[1752643293831,0.01284801,118110.0,118100.0,1.46213983]
[1752643294033,0.01522801,118110.0,118100.0,1.46213983]
[1752643295035,0.38463169,118110.0,118100.0,1.46213983]
[1752643296534,0.01522801,118110.0,118100.0,1.46213983]
[1752643297129,0.18455361,118110.0,118100.0,1.46213983]
[1752643299039,0.55395729,118110.0,118100.0,0.95092]
[1752643299336,0.55395729,118110.0,118100.0,1.12026]
[1752643305145,0.18455361,118110.0,118100.0,1.12026]
[1752643305345,0.55415729,118110.0,118100.0,1.12026]
[1752643305644,0.18475361,118110.0,118100.0,1.12026]
[1752643305942,0.55415729,118110.0,118100.0,1.12026]
[1752643307542,0.18475361,118110.0,118100.0,1.12026]
[1752643307747,0.55415729,118110.0,118100.0,1.12026]
[1752643308846,0.55415729,118110.0,118100.0,0.53014]
[1752643309047,0.55415729,118110.0,118100.0,1.11998]
[1752643309845,0.18475361,118110.0,118100.0,1.11998]
[1752643310145,0.55415729,118110.0,118100.0,1.11998]
[1752643311045,0.46183567,118110.0,118100.0,1.39706206]
[1752643311247,0.46183567,118110.0,118100.0,1.11998]
[1752643311445,0.46183567,118110.0,118100.0,1.39706206]
[1752643312347,0.56859226,118110.0,118100.0,1.39706206]
[1752643315645,0.46183567,118110.0,118100.0,1.39706206]
[1752643318649,0.18475361,118110.0,118100.0,1.39706206]
[1752643318846,0.46183567,118110.0,118100.0,1.39706206]
[1752643320061,0.46183567,118110.0,118100.0,1.11998]
[1752643320256,0.46183567,118110.0,118100.0,1.39706206]
[1752643320941,0.56859226,118110.0,118100.0,1.39706206]
[1752643321651,0.39688666,118110.0,118100.0,1.11998]
[1752643321851,0.39688666,118110.0,118100.0,1.67414412]
[1752643322152,0.56621236,118110.0,118100.0,1.67414412]
[1752643322353,0.56621236,118110.0,118100.0,1.39706206]
[1752643322855,0.2891303,118110.0,118100.0,1.39706206]
[1752643323055,0.56621236,118110.0,118100.0,1.39706206]
[1752643323554,0.2891303,118110.0,118100.0,1.39706206]
[1752643323756,0.56621236,118110.0,118100.0,1.39706206]
[1752643324051,0.45945577,118110.0,118100.0,1.39706206]
[1752643326058,0.56853145,118110.0,118100.0,1.11998]
[1752643326761,0.56853145,118110.0,118100.0,1.39706206]
[1752643327053,0.46178577,118110.0,118100.0,1.39706206]
[1752643328053,0.18470371,118110.0,118100.0,1.11998]
[1752643328250,0.46178577,118110.0,118100.0,1.11998]
[1752643328456,0.46178577,118110.0,118100.0,1.39706206]
[1752643330054,0.18470371,118110.0,118100.0,1.11998]
[1752643330255,0.46178577,118110.0,118100.0,1.39706206]
[1752643330451,0.11399568,118110.0,118100.0,1.67414412]
[1752643330650,0.11166568,118110.0,118100.0,2.03494412]
[1752643331158,0.11166568,118110.0,118100.0,1.85013288]
[1752643331955,0.11991077,118110.0,118100.0,1.85013288]
[1752643332160,0.11991077,118110.0,118100.0,1.48078]
[1752643332161,0.11166568,118110.0,118100.0,1.48078]
[1752643333753,0.12009034,118110.0,118100.0,1.48078]
[1752643335253,0.28941604,118110.0,118100.0,1.48078]
[1752643335661,0.18267036,118110.0,118100.0,1.48078]
[1752643336053,0.18496036,118110.0,118100.0,1.48078]
[1752643336459,0.55431324,118110.0,118100.0,1.48078]
[1752643336855,0.55431324,118110.0,118100.0,0.89094]
[1752643337060,0.55431324,118110.0,118100.0,0.53014]
[1752643337259,0.55431324,118110.0,118100.0,1.11938]
[1752643337260,0.66105892,118110.0,118100.0,1.11938]
[1752643338253,0.29170604,118110.0,118100.0,1.11938]
[1752643338450,0.66105892,118110.0,118100.0,0.3608]
[1752643338650,0.00706,118090.0,118080.0,0.6148484]
[1752643338957,0.54596718,118090.0,118080.0,1.2040884]
[1752643339157,0.54596718,118090.0,118080.0,1.1617478]
[1752643339959,0.54596718,118090.0,118080.0,0.5725078]
[1752643340260,0.54596718,118090.0,118080.0,1.1617478]
[1752643340462,0.1766143,118090.0,118080.0,1.1617478]
[1752643340857,0.54596718,118090.0,118080.0,1.1617478]
[1752643341056,0.1766143,118090.0,118080.0,1.1617478]
[1752643341254,0.54596718,118090.0,118080.0,1.1617478]
[1752643342058,0.1766143,118090.0,118080.0,1.1617478]
[1752643342261,0.54596718,118090.0,118080.0,1.1617478]
[1752643342760,0.1766143,118090.0,118080.0,1.1617478]
[1752643342957,0.54596718,118090.0,118080.0,1.1617478]
[1752643343158,0.54596718,118090.0,118080.0,0.5725078]
[1752643343358,0.54596718,118090.0,118080.0,1.1638678]
[1752643344558,0.54596718,118090.0,118080.0,0.5725078]
[1752643344758,0.54596718,118090.0,118080.0,1.1639878]
[1752643346562,0.1766143,118090.0,118080.0,1.1639878]
[1752643346862,0.54596718,118090.0,118080.0,1.1639878]
[1752643347465,0.54596718,118090.0,118080.0,0.5725078]
[1752643347657,0.54596718,118090.0,118080.0,1.1639078]
[1752643347853,0.54596718,118090.0,118080.0,1.1215687]
[1752643348464,0.54596718,118090.0,118080.0,0.5301687]
[1752643348663,0.54596718,118090.0,118080.0,1.1220087]
[1752643349566,0.54596718,118090.0,118080.0,1.1219287]
[1752643350064,0.54596718,118090.0,118080.0,1.1218087]
[1752643350265,0.1766143,118090.0,118080.0,1.1218887]
[1752643350466,0.54596718,118090.0,118080.0,0.5301687]
[1752643350665,0.54596718,118090.0,118080.0,1.1218487]
[1752643351164,0.1766143,118090.0,118080.0,1.1218487]
[1752643351367,0.54596718,118090.0,118080.0,1.1218487]
[1752643352066,0.1766143,118090.0,118080.0,1.1218487]
[1752643352266,0.37661288,118090.0,118080.0,1.1218487]
[1752643352567,0.00726,118090.0,118080.0,1.1218487]
[1752643352766,0.37661288,118090.0,118080.0,1.1218487]
[1752643353166,0.00726,118090.0,118080.0,1.1218487]
[1752643353367,0.37661288,118090.0,118080.0,1.1218487]
[1752643354260,0.37661288,118090.0,118080.0,0.5301687]
[1752643354468,0.54596718,118090.0,118080.0,1.1217687]
[1752643355270,0.54596718,118090.0,118080.0,1.1216487]
[1752643357162,0.54596718,118090.0,118080.0,1.1219687]
[1752643357365,0.1693687,118080.0,118070.0,0.3608]
[1752643357560,0.91513446,118080.0,118070.0,0.3608]
[1752643358467,0.1764287,118080.0,118070.0,0.3608]
[1752643358667,0.91513446,118080.0,118070.0,0.3608]
[1752643359668,0.176443,118070.0,118060.0,1.1219174]
[1752643359865,0.54579588,118070.0,118060.0,1.1219174]
[1752643360064,0.54579588,118070.0,118060.0,0.5301974]
[1752643360267,0.54579588,118070.0,118060.0,1.1235174]
[1752643360567,0.6134235,118070.0,118060.0,1.1235174]
[1752643360775,0.6134235,118070.0,118060.0,0.5301974]
[1752643360964,0.54579588,118070.0,118060.0,0.3608]
[1752643362066,0.1718874,118060.0,118050.0,0.95412]
[1752643362267,0.54575028,118060.0,118050.0,0.3608]
[1752643362674,0.54575028,118060.0,118050.0,0.5302117]
[1752643363365,0.54575028,118060.0,118050.0,0.5312117]
[1752643363561,0.54575028,118060.0,118050.0,0.3618]
[1752643363766,1.13899028,118060.0,118050.0,0.3618]
[1752643364061,1.13899028,118060.0,118050.0,0.5312117]
[1752643364265,1.13899028,118060.0,118050.0,0.3618]
[1752643364466,1.14745585,118060.0,118050.0,0.3618]
[1752643370570,1.14745585,118060.0,118050.0,0.001]
[1752643373167,0.77810297,118060.0,118050.0,0.001]
[1752643373369,1.14745585,118060.0,118050.0,0.001]
[1752643377578,0.1764117,118050.0,118040.0,0.3608]
[1752643377776,0.54576458,118050.0,118040.0,0.3608]
[1752643378284,0.1694548,118020.0,118010.0,0.00503]
[1752643378473,1.85264768,118020.0,118010.0,0.00483]
[1752643379480,1.85264768,118020.0,118010.0,0.00583]
[1752643379780,1.85264768,118020.0,118010.0,0.00815]
[1752643381588,1.85264768,118020.0,118010.0,0.00583]
[1752643381890,1.85264768,118020.0,118010.0,0.001]
[1752643382282,0.1764978,117990.0,117980.0,0.00252]
[1752643382580,0.90214068,117990.0,117980.0,0.1718322]
[1752643382884,0.1694978,117990.0,117980.0,0.256587]
[1752643383080,0.53885068,117990.0,117980.0,0.256587]
[1752643383477,1.08869674,118000.0,117990.0,0.1718178]
[1752643383478,0.5726601,118000.0,117990.0,0.1718178]
[1752643383778,1.57673198,118010.0,118000.0,0.1718034]
[1752643383978,1.57677198,118010.0,118000.0,0.1718034]
[1752643384184,1.58508128,118010.0,118000.0,0.1718034]
[1752643384485,1.58508128,118010.0,118000.0,0.00715]
[1752643385773,1.58959128,118010.0,118000.0,0.00715]
[1752643385979,0.1719879,117990.0,117980.0,0.5749973]
[1752643386284,0.54134078,117990.0,117980.0,0.5749973]
[1752643386480,0.54134078,117990.0,117980.0,0.5798273]
[1752643387485,0.54134078,117990.0,117980.0,0.5848273]
[1752643390987,0.54134078,117990.0,117980.0,0.5808273]
[1752643397091,0.1719879,117990.0,117980.0,0.5808273]
[1752643397386,0.54134078,117990.0,117980.0,0.5808273]
[1752643397590,0.1719879,117990.0,117980.0,0.5808273]
[1752643397789,0.54134078,117990.0,117980.0,0.5808273]
[1752643398791,0.1719879,117990.0,117980.0,0.5808273]
[1752643398985,0.54134078,117990.0,117980.0,0.5808273]
[1752643401692,0.54617078,117990.0,117980.0,0.5808273]
[1752643401884,0.54617078,117990.0,117980.0,1.1726273]
[1752643403184,0.54134078,117990.0,117980.0,1.1726273]
[1752643403391,0.1719879,117990.0,117980.0,1.1726273]
[1752643403993,0.617319,118000.0,117990.0,0.1766378]
[1752643404193,0.98667188,118000.0,117990.0,0.1766378]
[1752643404388,1.36085476,118000.0,117990.0,0.1766378]
[1752643404588,0.622149,118000.0,117990.0,0.1766378]
[1752643404792,0.99150188,118000.0,117990.0,0.1766378]
[1752643407494,0.622149,118000.0,117990.0,0.1766378]
[1752643407695,0.99150188,118000.0,117990.0,0.1766378]
[1752643408897,0.63070188,118000.0,117990.0,0.1766378]
[1752643409095,0.99150188,118000.0,117990.0,0.1766378]
[1752643409999,0.622149,118000.0,117990.0,0.1766378]
[1752643410206,0.99150188,118000.0,117990.0,0.1766378]
[1752643410408,0.622149,118000.0,117990.0,0.1766378]
[1752643410610,0.99150188,118000.0,117990.0,0.1766378]
[1752643411704,1.49619628,118000.0,117990.0,0.1766378]
[1752643411902,0.5302834,118000.0,117990.0,0.54599068]
[1752643412207,0.5302834,118000.0,117990.0,0.1766378]
[1752643415712,0.89963628,118000.0,117990.0,0.1766378]
[1752643418316,0.90191628,118000.0,117990.0,0.1766378]
[1752643418912,0.90674628,118000.0,117990.0,0.00714]
[1752643419212,0.5373934,118000.0,117990.0,0.00714]
[1752643419512,0.90674628,118000.0,117990.0,0.00714]
[1752643419715,0.90674628,118000.0,117990.0,0.1766378]
[1752643419716,0.5373934,118000.0,117990.0,0.1766378]
[1752643420019,0.90674628,118000.0,117990.0,0.1766378]
[1752643420618,0.5373934,118000.0,117990.0,0.1766378]
[1752643420818,0.90674628,118000.0,117990.0,0.1766378]
[1752643427024,0.90674628,118000.0,117990.0,0.1694978]
[1752643427823,0.1717878,117990.0,117980.0,0.6647405]
[1752643428125,0.1717878,117990.0,117980.0,0.6223631]
[1752643428126,0.54577068,117990.0,117980.0,0.6223631]
[1752643429523,0.54577068,117990.0,117980.0,0.6233631]
[1752643430824,0.1764178,117990.0,117980.0,0.6233631]
[1752643431018,0.54577068,117990.0,117980.0,0.6233631]
[1752643431826,0.1764178,117990.0,117980.0,0.6233631]
[1752643432025,0.54577068,117990.0,117980.0,0.6233631]
[1752643437831,0.1764178,117990.0,117980.0,0.6233631]
[1752643438033,0.54577068,117990.0,117980.0,0.6233631]
[1752643439633,0.62208,117990.0,117980.0,0.6233631]
[1752643439840,0.62208,117990.0,117980.0,0.580986]
[1752643440132,1.2176,117990.0,117980.0,0.1705121]
[1752643440731,0.84824712,117990.0,117980.0,0.1705121]
[1752643441036,1.2176,117990.0,117980.0,0.1705121]
[1752643441739,1.2176,117990.0,117980.0,0.1755021]
[1752643442036,1.2176,117990.0,117980.0,0.1778221]
[1752643444937,0.84824712,117990.0,117980.0,0.1778221]
[1752643445138,1.2176,117990.0,117980.0,0.1778221]
[1752643446342,0.1717878,117990.0,117980.0,0.54717498]
[1752643446740,0.1717878,117990.0,117980.0,0.1778221]
[1752643447038,0.54114068,117990.0,117980.0,0.1778221]
[1752643447541,0.24808133,117990.0,117980.0,0.1778221]
[1752643447841,0.61743421,117990.0,117980.0,0.1778221]
[1752643448043,0.62206421,117990.0,117980.0,0.1778221]
[1752643449841,0.61743421,117990.0,117980.0,0.1778221]
[1752643451144,0.62206421,117990.0,117980.0,0.1778221]
[1752643456344,0.54577068,117990.0,117980.0,0.1778221]
[1752643464255,0.62206421,117990.0,117980.0,0.1778221]
[1752643468563,0.25271133,117990.0,117980.0,0.1778221]
[1752643468764,0.62206421,117990.0,117980.0,0.1778221]
[1752643468960,0.5303299,117990.0,117980.0,0.1778221]
[1752643471467,0.80794847,117990.0,117980.0,0.1778221]
[1752643472569,0.5303299,117990.0,117980.0,0.1778221]
[1752643473771,0.73165494,117990.0,117980.0,0.1778221]
[1752643474481,0.73165494,117990.0,117980.0,0.1705121]
[1752643474778,0.73165494,117990.0,117980.0,0.1705122]
[1752643475680,0.1764178,117990.0,117980.0,0.1705122]
[1752643475879,0.73165494,117990.0,117980.0,0.1753022]